bitfinex-derivatives/quotes_BTCF0:USTF0_20250501
["timestamp","ask_amount","ask_price","bid_price","bid_amount"]
[1746119777652,0.2410091,97144.0,97143.0,0.2058099]
[1746119778061,0.01588479,97145.0,97144.0,0.2058078]
[1746119778757,0.22169049,97145.0,97144.0,0.2058078]
[1746119780355,0.22769049,97145.0,97144.0,0.2058078]
[1746119781553,0.0075,97145.0,97144.0,0.2058078]
[1746119781859,0.2430811,97157.0,97156.0,0.2057824]
[1746119782258,0.2796811,97157.0,97156.0,0.2057824]
[1746119782662,0.2796811,97157.0,97155.0,0.3608]
[1746119782861,0.2937631,97157.0,97156.0,0.2057824]
[1746119783160,0.2258631,97157.0,97156.0,0.2067824]
[1746119783464,0.006,97157.0,97156.0,0.2067824]
[1746119783860,0.13447639,97158.0,97155.0,0.3608]
[1746119783861,0.13447639,97158.0,97157.0,0.2057803]
[1746119784260,0.12064987,97158.0,97157.0,0.2057803]
[1746119784859,0.32642797,97158.0,97157.0,0.2057803]
[1746119785771,0.32742797,97158.0,97157.0,0.2057803]
[1746119786365,0.32942797,97158.0,97157.0,0.2057803]
[1746119787368,0.32942797,97158.0,97157.0,0.06348]
[1746119787571,0.40022797,97158.0,97157.0,0.06348]
[1746119787755,0.40022797,97158.0,97157.0,0.2692603]
[1746119789164,0.36552797,97158.0,97157.0,0.2692603]
[1746119789469,0.12364987,97158.0,97157.0,0.2692603]
[1746119789659,0.32942797,97158.0,97157.0,0.2692603]
[1746119792369,0.12364987,97158.0,97157.0,0.2692603]
[1746119792572,0.0514377,97171.0,97164.0,0.2057654]
[1746119792768,0.2571938,97171.0,97170.0,0.2057527]
[1746119792960,0.0692,97171.0,97170.0,0.2057527]
[1746119793565,0.0341,97171.0,97170.0,0.2057527]
[1746119794875,0.0371,97171.0,97170.0,0.2057527]
[1746119796177,0.0401,97171.0,97170.0,0.2057527]
[1746119800377,0.0401,97171.0,97170.0,0.2420527]
[1746119805278,0.0764,97171.0,97170.0,0.2420527]
[1746119805984,0.2821506,97171.0,97170.0,0.2420527]
[1746119806184,0.0764,97171.0,97170.0,0.2420527]
[1746119806388,0.0764,97171.0,97170.0,0.2470527]
[1746119811473,0.0764,97171.0,97170.0,0.6078527]
[1746119820079,0.2821506,97171.0,97170.0,0.6078527]
[1746119821186,0.0764,97171.0,97170.0,0.6078527]
[1746119824483,0.2821506,97171.0,97170.0,0.6078527]
[1746119824694,0.0764,97171.0,97170.0,0.6078527]
[1746119824986,0.0764,97171.0,97170.0,0.2470527]
[1746119825184,0.0764,97171.0,97170.0,0.6078527]
[1746119832890,0.0764,97171.0,97170.0,0.4021]
[1746119833093,0.0764,97171.0,97170.0,0.6078527]
[1746119833991,0.22064987,97200.0,97170.0,0.505012]
[1746119834291,0.2056947,97198.0,97197.0,0.2056917]
[1746119834491,0.43962629,97200.0,97199.0,0.2056913]
[1746119834887,0.2056913,97199.0,97198.0,0.0366]
[1746119835089,0.2056913,97199.0,97198.0,0.2422935]
[1746119835696,0.2056913,97199.0,97198.0,0.0366]
[1746119836597,0.2056913,97199.0,97198.0,0.2422935]
[1746119836899,0.2086913,97199.0,97198.0,0.2422935]
[1746119837201,0.2807913,97199.0,97198.0,0.2422935]
[1746119837502,0.2827913,97199.0,97198.0,0.2422935]
[1746119840287,0.2106913,97199.0,97198.0,0.2422935]
[1746119842002,0.005,97199.0,97198.0,0.2422935]
[1746119842405,0.2106913,97199.0,97198.0,0.2422935]
[1746119849802,0.2056935,97198.0,97197.0,0.00758747]
[1746119850000,0.570484,97198.0,97177.0,0.06344]
[1746119850195,0.2057316,97180.0,97179.0,0.2057322]
[1746119851202,0.1068,97181.0,97178.0,0.0358]
[1746119851415,0.2792337,97179.0,97178.0,0.0358]
[1746119851610,0.2792337,97179.0,97178.0,0.2415358]
[1746119852802,0.2792337,97179.0,97178.0,0.2435358]
[1746119853002,0.2792337,97179.0,97178.0,0.2445358]
[1746119853306,0.2792337,97179.0,97178.0,0.04655128]
[1746119854903,0.2792337,97179.0,97178.0,0.25228708]
[1746119855104,0.2792337,97179.0,97178.0,0.04655128]
[1746119857307,0.2792337,97179.0,97178.0,0.25228708]
[1746119859704,0.2057337,97179.0,97178.0,0.25228708]
[1746119859906,0.2571606,97184.0,97183.0,0.2057252]
[1746119860912,0.2571606,97184.0,97183.0,0.2737252]
[1746119861407,0.2571606,97184.0,97183.0,0.2747252]
[1746119861612,0.22064987,97200.0,97183.0,0.069]
[1746119861798,0.0514261,97193.0,97183.0,0.069]
[1746119862006,0.1028526,97193.0,97190.0,0.2057101]
[1746119862313,0.2571241,97197.0,97196.0,0.2056935]
[1746119863212,0.2056998,97195.0,97194.0,0.2057003]
[1746119863413,0.205704,97193.0,97192.0,0.3608]
[1746119863614,0.205704,97193.0,97192.0,0.5665062]
[1746119864309,0.2057083,97191.0,97190.0,0.2057095]
[1746119865715,0.2067083,97191.0,97190.0,0.2057095]
[1746119866107,0.2077083,97191.0,97190.0,0.2057095]
[1746119867417,0.2077083,97191.0,97190.0,0.5665095]
[1746119870716,0.002,97191.0,97190.0,0.5665095]
[1746119875718,0.2077083,97191.0,97190.0,0.3608]
[1746119875922,0.2077083,97191.0,97190.0,0.5665104]
[1746119876122,0.2077083,97191.0,97190.0,0.5999104]
[1746119878419,0.2763083,97191.0,97190.0,0.5999104]
[1746119881429,0.2057104,97190.0,97189.0,0.0339]
[1746119881625,0.2057316,97180.0,97172.0,0.0358]
[1746119881927,0.2057316,97180.0,97170.0,0.005]
[1746119882127,0.3086356,97180.0,97172.0,0.0339]
[1746119882529,0.3794356,97180.0,97179.0,0.3958]
[1746119883226,0.3794356,97180.0,97179.0,0.035]
[1746119883923,0.3794356,97180.0,97179.0,0.036]
[1746119884527,0.3794356,97180.0,97179.0,0.037]
[1746119884830,0.3794356,97180.0,97179.0,0.036]
[1746119885024,0.3794356,97180.0,97179.0,0.037]
[1746119887633,0.3794356,97180.0,97179.0,0.036]
[1746119887823,0.3794356,97180.0,97179.0,0.037]
[1746119889431,0.7402356,97180.0,97179.0,0.037]
[1746119890839,0.7402356,97180.0,97179.0,0.05238322]
[1746119891837,0.7402356,97180.0,97179.0,0.037]
[1746119892142,0.6373316,97180.0,97179.0,0.05238464]
[1746119892836,0.6373316,97180.0,97179.0,0.05238566]
[1746119893537,0.6373316,97180.0,97179.0,0.037]
[1746119893837,0.6373316,97180.0,97179.0,0.05238458]
[1746119894926,0.6373316,97180.0,97179.0,0.05261238]
[1746119896034,0.6373316,97180.0,97179.0,0.037]
[1746119896341,0.2765316,97180.0,97179.0,0.037]
[1746119896535,0.4122299,97186.0,97179.0,0.037]
[1746119896536,0.2057252,97186.0,97185.0,0.2571464]
[1746119896741,0.2057189,97188.0,97187.0,0.2057161]
[1746119897436,0.2057189,97188.0,97187.0,0.2795161]
[1746119897629,0.257148,97188.0,97187.0,0.0374]
[1746119897835,0.2057337,97179.0,97178.0,0.00775128]
[1746119898036,0.2057464,97173.0,97172.0,0.0338]
[1746119898932,0.2411464,97173.0,97172.0,0.0338]
[1746119899240,0.2772464,97173.0,97172.0,0.0712]
[1746119899435,0.2772464,97173.0,97172.0,0.0374]
[1746119900144,0.2772464,97173.0,97172.0,0.0384]
[1746119900543,0.2772464,97173.0,97172.0,0.0394]
[1746119901532,0.2772464,97173.0,97172.0,0.047067]
[1746119901737,0.264394,97173.0,97172.0,0.047067]
[1746119902547,0.228294,97173.0,97172.0,0.047067]
[1746119902737,0.192894,97173.0,97172.0,0.047067]
[1746119902937,0.192894,97173.0,97172.0,0.2528155]
[1746119903542,0.2057439,97175.0,97174.0,0.2057421]
[1746119905744,0.2057439,97175.0,97174.0,0.2067421]
[1746119905945,0.2057402,97176.0,97175.0,0.2057379]
[1746119906143,0.2057402,97176.0,97175.0,0.3278729]
[1746119906544,0.2057402,97176.0,97175.0,0.1062]
[1746119906952,0.2057402,97176.0,97175.0,0.0707]
[1746119907543,0.2771402,97176.0,97175.0,0.0369]
[1746119907752,0.2771402,97176.0,97175.0,0.0389]
[1746119908253,0.2771402,97176.0,97175.0,0.0369]
[1746119908948,0.2771402,97176.0,97175.0,0.0389]
[1746119909646,0.2771402,97176.0,97175.0,0.0369]
[1746119910944,0.2781402,97176.0,97175.0,0.0369]
[1746119912450,0.2791402,97176.0,97175.0,0.0369]
[1746119912651,0.2662877,97176.0,97175.0,0.0369]
[1746119913848,0.2652877,97176.0,97175.0,0.0369]
[1746119914050,0.2662877,97176.0,97175.0,0.0369]
[1746119916151,0.2652877,97176.0,97175.0,0.0369]
[1746119916457,0.2662877,97176.0,97175.0,0.0369]
[1746119919265,0.2662877,97176.0,97175.0,0.0744]
[1746119922467,0.2662877,97176.0,97175.0,0.0369]
[1746119923060,0.2662877,97176.0,97132.0,0.3608]
[1746119923061,0.2058036,97146.0,97132.0,0.3608]
[1746119923254,0.2058036,97146.0,97141.0,0.0365]
[1746119923567,0.2058036,97146.0,97145.0,0.20683508]
[1746119923774,0.2058036,97146.0,97145.0,0.00102938]
[1746119924069,0.20588266,97146.0,97145.0,0.00102938]
[1746119924566,0.20588266,97146.0,97145.0,0.00602938]
[1746119924966,0.21865736,97146.0,97145.0,0.00602938]
[1746119925169,0.25265736,97146.0,97145.0,0.01202938]
[1746119925665,0.25265736,97146.0,97145.0,0.01962152]
[1746119926070,0.25265736,97146.0,97145.0,0.01262152]
[1746119934976,0.21865736,97146.0,97145.0,0.37342152]
[1746119935273,0.01285376,97146.0,97145.0,0.57922722]
[1746119935478,0.20588266,97146.0,97145.0,0.57922722]
[1746119935678,0.20588266,97146.0,97145.0,0.65292722]
[1746119936880,0.20588266,97146.0,97145.0,0.44712152]
[1746119937381,0.20588266,97146.0,97145.0,0.65292722]
[1746119938169,0.20588266,97146.0,97145.0,0.44712152]
[1746119939081,0.20588266,97146.0,97145.0,0.08632152]
[1746119941879,0.24368266,97146.0,97145.0,0.08632152]
[1746119943075,0.24368266,97146.0,97143.0,0.29743053]
[1746119943076,0.2058078,97144.0,97143.0,0.29743053]
[1746119943771,0.17648166,97146.0,97142.0,0.205811]
[1746119943772,0.2058099,97143.0,97142.0,0.205811]
[1746119943973,0.2058099,97143.0,97142.0,0.21360908]
[1746119944883,0.2058099,97143.0,97142.0,0.00779808]
[1746119945078,0.2058099,97143.0,97142.0,0.003]
[1746119945485,0.2058099,97143.0,97142.0,0.208812]
[1746119946088,0.2058099,97143.0,97142.0,0.210812]
[1746119946282,0.2058099,97143.0,97142.0,0.283712]
[1746119947075,0.2058099,97143.0,97142.0,0.2989735]
[1746119947277,0.20588266,97146.0,97145.0,0.2058057]
[1746119947481,0.20588266,97146.0,97145.0,0.22106798]
[1746119947794,7.906e-05,97146.0,97145.0,0.22106798]
[1746119947982,7.906e-05,97146.0,97145.0,0.2058057]
[1746119948588,0.20588266,97146.0,97145.0,0.2058057]
[1746119948779,7.906e-05,97146.0,97145.0,0.2058057]
[1746119949086,0.20588266,97146.0,97145.0,0.2068057]
[1746119949281,7.906e-05,97146.0,97145.0,0.2078057]
[1746119949786,7.906e-05,97146.0,97145.0,0.3107457]
[1746119950184,7.906e-05,97146.0,97145.0,0.2117457]
[1746119950884,7.906e-05,97146.0,97145.0,0.2127457]
[1746119951080,0.20588266,97146.0,97145.0,0.2147457]
[1746119951481,0.20588266,97146.0,97145.0,0.006]
[1746119952081,0.27768266,97146.0,97145.0,0.006]
[1746119952486,0.27768266,97146.0,97145.0,0.003]
[1746119952993,0.27768266,97146.0,97145.0,0.02124978]
[1746119953388,0.27768266,97146.0,97145.0,0.01924978]
[1746119953987,0.27768266,97146.0,97145.0,0.001]
[1746119954187,0.27768266,97146.0,97145.0,0.003]
[1746119955293,0.2058099,97143.0,97142.0,0.00766929]
[1746119955497,0.205829,97134.0,97133.0,0.3608]
[1746119956590,0.280029,97134.0,97133.0,0.3608]
[1746119957296,0.29192326,97134.0,97133.0,0.3608]
[1746119957486,0.29192326,97134.0,97133.0,0.3638]
[1746119958698,0.29192326,97134.0,97133.0,0.3678]
[1746119959202,0.29192326,97134.0,97133.0,0.37534034]
[1746119960899,0.25542326,97134.0,97133.0,0.37534034]
[1746119961096,0.21772326,97134.0,97133.0,0.65287144]
[1746119961299,0.205829,97134.0,97133.0,0.65287144]
[1746119961703,0.2572737,97142.0,97141.0,0.205812]
[1746119961996,0.2572737,97142.0,97141.0,0.566612]
[1746119963100,0.2572737,97142.0,97141.0,0.568612]
[1746119963893,0.2572737,97142.0,97141.0,0.570612]
[1746119964699,0.2948737,97142.0,97141.0,0.570612]
[1746119964896,0.2948737,97142.0,97141.0,0.3648]
[1746119968295,0.3311737,97142.0,97141.0,0.3648]
[1746119968896,0.3311737,97142.0,97141.0,0.5706142]
[1746119969103,0.3311737,97142.0,97141.0,0.3648]
[1746119971209,0.3687737,97142.0,97141.0,0.004]
[1746119975813,0.3687737,97142.0,97141.0,0.003]
[1746119976314,0.3687737,97142.0,97141.0,0.002]
[1746119981817,0.3687737,97142.0,97141.0,0.001]
[1746119982414,0.2058248,97136.0,97135.0,0.0363]
[1746119983616,0.2822248,97136.0,97135.0,0.0363]
[1746119984209,0.2822248,97136.0,97135.0,0.0373]
[1746119984420,0.2822248,97136.0,97135.0,0.2431269]
[1746119984716,0.2822248,97136.0,97135.0,0.0373]
[1746119987018,0.2822248,97136.0,97135.0,0.001]
[1746119998518,0.2822248,97136.0,97135.0,0.0376]
[1746120005926,0.2822248,97136.0,97135.0,0.001]
[1746120008127,0.2058248,97136.0,97135.0,0.2068269]
[1746120008331,0.2058248,97136.0,97135.0,0.2448269]
[1746120017231,0.2058248,97136.0,97135.0,0.2814269]
[1746120017639,0.2058248,97136.0,97135.0,0.2434269]
[1746120017839,0.2445248,97136.0,97135.0,0.2434269]
[1746120018337,0.2445248,97136.0,97135.0,0.001]
[1746120018539,0.2058396,97129.0,97128.0,0.0366]
[1746120019035,0.2058417,97128.0,97123.0,0.06344]
[1746120019338,0.2815417,97128.0,97124.0,0.2058496]
[1746120019535,0.2815417,97128.0,97127.0,0.20738816]
[1746120020537,0.2815417,97128.0,97127.0,0.20938816]
[1746120020739,0.2428417,97128.0,97127.0,0.20938816]
[1746120020940,0.2058417,97128.0,97127.0,0.24738816]
[1746120021238,0.2058417,97128.0,97127.0,0.25517069]
[1746120021641,0.2058417,97128.0,97127.0,0.25717069]
[1746120022133,0.2058349,97132.0,97131.0,0.2572894]
[1746120022442,0.0889555,97138.0,97135.0,0.2572788]
[1746120022737,0.2058226,97137.0,97136.0,0.2424226]
[1746120022939,0.2058226,97137.0,97136.0,0.2792226]
[1746120023135,0.2426226,97137.0,97136.0,0.2792226]
[1746120026342,0.2801226,97137.0,97136.0,0.2792226]
[1746120027247,0.2801226,97137.0,97136.0,0.0368]
[1746120032445,0.2801226,97137.0,97136.0,0.2426248]
[1746120033239,0.2801226,97137.0,97136.0,0.0368]
[1746120033750,0.2426226,97137.0,97136.0,0.2816248]
[1746120034345,0.0368,97137.0,97136.0,0.2816248]
[1746120034548,0.3608,97151.0,97145.0,0.2058057]
[1746120034846,0.2057837,97157.0,97156.0,0.2057797]
[1746120035051,0.0514433,97161.0,97147.0,0.2352947]
[1746120035235,0.2057846,97157.0,97156.0,0.2057807]
[1746120036045,0.2057846,97157.0,97156.0,0.0357]
[1746120036550,0.2435846,97157.0,97156.0,0.0357]
[1746120039137,0.2057909,97152.0,97151.0,0.1838446]
[1746120039340,0.2057972,97149.0,97148.0,0.2434991]
[1746120041148,0.2057972,97149.0,97148.0,0.0387]
[1746120041448,0.2057972,97149.0,97148.0,0.003]
[1746120041842,0.21728678,97149.0,97148.0,0.003]
[1746120042039,0.57808678,97149.0,97148.0,0.003]
[1746120043352,0.57808678,97149.0,97148.0,0.002]
[1746120044042,0.57808678,97149.0,97148.0,0.001]
[1746120044244,0.57808678,97149.0,97141.0,0.09437105]
[1746120044245,0.205812,97142.0,97141.0,0.09437105]
[1746120044847,0.205812,97142.0,97141.0,0.09376096]
[1746120045048,0.277612,97142.0,97141.0,0.09376096]
[1746120046943,0.277612,97142.0,97141.0,0.13196096]
[1746120047342,0.0718,97142.0,97141.0,0.13196096]
[1746120047658,0.0718,97142.0,97141.0,0.17156096]
[1746120048248,0.0718,97142.0,97141.0,0.17056096]
[1746120048550,0.0718,97142.0,97141.0,0.17156096]
[1746120049652,0.0718,97142.0,97141.0,0.20726096]
[1746120049845,0.0718,97142.0,97141.0,0.20826096]
[1746120050042,0.0366,97142.0,97141.0,0.20826096]
[1746120050848,0.0366,97142.0,97141.0,0.21026096]
[1746120052256,0.0366,97142.0,97141.0,0.20926096]
[1746120052459,0.0366,97142.0,97141.0,0.20726096]
[1746120052955,0.0366,97142.0,97141.0,0.20926096]
[1746120053356,0.0366,97142.0,97141.0,0.21026096]
[1746120055448,0.0366,97142.0,97141.0,0.05554417]
[1746120055652,0.0366,97142.0,97141.0,0.26135837]
[1746120055844,0.257227,97159.0,97141.0,0.05554417]
[1746120056049,0.2057741,97160.0,97159.0,0.2057739]
[1746120057060,0.3608,97170.0,97159.0,0.3608]
[1746120057259,0.2057689,97164.0,97163.0,0.257204]
[1746120057960,0.2572037,97166.0,97165.0,0.2057633]
[1746120058153,0.2571931,97172.0,97171.0,0.2057456]
[1746120058647,0.26870968,97172.0,97171.0,0.2057456]
[1746120059155,0.26870968,97172.0,97169.0,0.0514385]
[1746120059156,0.2057548,97170.0,97169.0,0.2057534]
[1746120059551,0.2800548,97170.0,97169.0,0.2057534]
[1746120060350,0.2810548,97170.0,97169.0,0.2057534]
[1746120060750,0.2820548,97170.0,97169.0,0.2057534]
[1746120062056,0.0763,97170.0,97169.0,0.2057534]
[1746120062452,0.2820527,97170.0,97169.0,0.2057534]
[1746120063461,0.2057548,97169.0,97168.0,0.243157]
[1746120064153,0.2765548,97169.0,97168.0,0.243157]
[1746120065054,0.2775548,97169.0,97168.0,0.243157]
[1746120065267,0.2785548,97169.0,97168.0,0.243157]
[1746120068161,0.2057591,97167.0,97166.0,0.2057593]
[1746120070955,0.2057633,97165.0,97164.0,0.2442644]
[1746120071557,0.2810633,97165.0,97164.0,0.2442644]
[1746120072264,0.2810633,97165.0,97164.0,0.0385]
[1746120072466,0.3325042,97165.0,97164.0,0.2057654]
[1746120072665,0.2057702,97163.0,97162.0,0.2057685]
[1746120073168,0.2057718,97161.0,97160.0,0.2812726]
[1746120073362,0.2057718,97161.0,97160.0,0.2057726]
[1746120073665,0.0753,97162.0,97153.0,0.0373]
[1746120073666,0.2057739,97160.0,97153.0,0.0373]
[1746120073863,0.3176739,97160.0,97159.0,0.566576]
[1746120075066,0.3176739,97160.0,97159.0,0.567576]
[1746120075366,0.3176739,97160.0,97159.0,0.568576]
[1746120076669,0.1119,97160.0,97159.0,0.568576]
[1746120077270,0.3176739,97160.0,97159.0,0.568576]
[1746120080072,0.3176739,97160.0,97159.0,0.207776]
[1746120080281,0.3176739,97160.0,97149.0,0.0514489]
[1746120080282,0.2572578,97147.0,97146.0,0.2057976]
[1746120080464,0.2572578,97147.0,97146.0,0.2691576]
[1746120080664,0.205807,97147.0,97146.0,0.2691576]
[1746120080864,0.3215991,97149.0,97148.0,0.2057993]
[1746120081467,0.33689319,97149.0,97148.0,0.2057993]
[1746120081668,0.3215991,97149.0,97148.0,0.2057993]
[1746120082369,0.3215991,97149.0,97148.0,0.2077993]
[1746120083967,0.3215991,97149.0,97148.0,0.002]
[1746120084167,0.33719207,97149.0,97148.0,0.002]
[1746120087270,0.33719207,97149.0,97148.0,0.001]
[1746120087470,0.33719207,97149.0,97132.0,0.0634]
[1746120087471,0.23532897,97149.0,97128.0,0.0392]
[1746120087664,0.2058396,97129.0,97128.0,0.1]
[1746120087870,0.2058417,97128.0,97127.0,0.00932689]
[1746120088073,0.2819417,97128.0,97127.0,0.00932689]
[1746120089678,0.2819417,97128.0,97127.0,0.01232689]
[1746120090378,0.2819417,97128.0,97127.0,0.01532689]
[1746120090979,0.2819417,97128.0,97127.0,0.01432689]
[1746120091375,0.2819417,97128.0,97127.0,0.01232689]
[1746120092280,0.0761,97128.0,97127.0,0.21817069]
[1746120092581,0.2446417,97128.0,97127.0,0.21817069]
[1746120092977,0.2446417,97128.0,97127.0,0.25697069]
[1746120097885,0.2446417,97128.0,97127.0,0.21817069]
[1746120098076,0.2446417,97128.0,97127.0,0.01232689]
[1746120098983,0.2446417,97128.0,97127.0,0.21817069]
[1746120102079,0.2446417,97128.0,97127.0,0.29517069]
[1746120102891,0.2446417,97128.0,97127.0,0.25737069]
[1746120105184,0.2446417,97128.0,97127.0,0.01232689]
[1746120113884,0.0388,97128.0,97127.0,0.21817069]
[1746120114084,0.2446417,97128.0,97127.0,0.21817069]
[1746120114595,0.205822,97139.0,97138.0,0.2058184]
[1746120115196,0.08805,97148.0,97138.0,0.0772]
[1746120115401,0.205805,97146.0,97145.0,0.5666003]
[1746120115990,0.243005,97146.0,97145.0,0.3608]
[1746120116490,0.243005,97146.0,97145.0,0.3999]
[1746120117598,0.245005,97146.0,97145.0,0.3999]
[1746120117807,0.280405,97146.0,97145.0,0.3999]
[1746120117995,0.0514514,97145.0,97130.0,0.18383943]
[1746120118292,0.2058417,97128.0,97127.0,0.00932689]
[1746120118497,0.2058417,97128.0,97127.0,0.21517069]
[1746120118798,0.2058417,97128.0,97127.0,0.57597069]
[1746120118986,0.2058376,97130.0,97128.0,0.0514601]
[1746120119190,0.2058376,97130.0,97127.0,0.42158749]
[1746120119191,0.2572973,97130.0,97129.0,0.2058396]
[1746120119598,0.2058376,97130.0,97129.0,0.2058396]
[1746120120298,0.2058376,97130.0,97129.0,0.2800396]
[1746120120698,0.2058376,97130.0,97129.0,0.0742]
[1746120121103,0.2058376,97130.0,97129.0,0.0752]
[1746120121399,0.0368,97131.0,97130.0,0.2058375]
[1746120121591,0.0368,97131.0,97130.0,0.2800375]
[1746120121787,0.2426353,97131.0,97130.0,0.2800375]
[1746120122399,0.2426353,97131.0,97130.0,0.2810375]
[1746120123500,0.2426353,97131.0,97130.0,0.2820375]
[1746120124392,0.2426353,97131.0,97130.0,0.2810375]
[1746120124597,0.2426353,97131.0,97130.0,0.2820375]
[1746120125101,0.0368,97131.0,97130.0,0.2820375]
[1746120125306,0.2426353,97131.0,97130.0,0.2820375]
[1746120126095,0.2058146,97142.0,97141.0,0.2058099]
[1746120126695,0.2058146,97142.0,97141.0,0.2785099]
[1746120127400,0.2058146,97142.0,97141.0,0.0727]
[1746120127702,0.2078146,97142.0,97141.0,0.0727]
[1746120127897,0.2078146,97142.0,97141.0,0.2785142]
[1746120128293,0.2451146,97142.0,97141.0,0.2785142]
[1746120128601,0.2441146,97142.0,97141.0,0.2785142]
[1746120129404,0.2441146,97142.0,97141.0,0.2795142]
[1746120129602,0.0514468,97154.0,97148.0,0.2057993]
[1746120129903,0.2057945,97152.0,97151.0,0.2057892]
[1746120130099,0.0514451,97157.0,97151.0,0.0883477]
[1746120130403,0.2572291,97156.0,97155.0,0.2057845]
[1746120130904,0.2057887,97154.0,97153.0,0.2057875]
[1746120131099,0.2057887,97154.0,97153.0,0.2416875]
[1746120131406,0.2421887,97154.0,97153.0,0.2416875]
[1746120132904,0.2441887,97154.0,97153.0,0.2416875]
[1746120133405,0.2421887,97154.0,97153.0,0.2416875]
[1746120133704,0.2421887,97154.0,97153.0,0.0359]
[1746120133909,0.2792887,97154.0,97153.0,0.0359]
[1746120134105,0.0514478,97152.0,97150.0,0.0634]
[1746120134297,0.281193,97151.0,97150.0,0.0634]
[1746120134497,0.281193,97151.0,97150.0,0.2691951]
[1746120135004,0.281193,97151.0,97150.0,0.0634]
[1746120135602,0.281193,97151.0,97150.0,0.2701951]
[1746120136005,0.281193,97151.0,97150.0,0.0644]
[1746120136410,0.281193,97151.0,97150.0,0.2701951]
[1746120136609,0.281193,97151.0,97150.0,0.3080951]
[1746120139215,0.244093,97151.0,97150.0,0.3080951]
[1746120140116,0.0383,97151.0,97150.0,0.3080951]
[1746120141118,0.205783,97156.0,97155.0,0.2572262]
[1746120142025,0.205783,97156.0,97155.0,0.2057803]
[1746120142227,0.244183,97156.0,97155.0,0.2057803]
[1746120142623,0.2057866,97154.0,97153.0,0.0389]
[1746120142828,0.205793,97151.0,97150.0,0.0634]
[1746120143027,0.2057972,97149.0,97148.0,0.3608]
[1746120143321,0.2057972,97149.0,97148.0,0.6299593]
[1746120143723,0.2809972,97149.0,97148.0,0.6299593]
[1746120145032,0.2809972,97149.0,97148.0,0.6309593]
[1746120145530,0.2809972,97149.0,97148.0,0.6319593]
[1746120148324,0.2809972,97149.0,97148.0,0.6699593]
[1746120148525,0.2809972,97149.0,97148.0,0.7438593]
[1746120149529,0.2809972,97149.0,97148.0,0.59799167]
[1746120150223,0.2809972,97149.0,97148.0,0.56199167]
[1746120150832,0.2809972,97149.0,97148.0,0.48609167]
[1746120151735,0.2809972,97149.0,97148.0,0.2711593]
[1746120165231,0.2809972,97149.0,97148.0,0.2077993]
[1746120165432,0.2809972,97149.0,97148.0,0.2711593]
[1746120168539,0.2809972,97149.0,97148.0,0.06536]
[1746120169040,0.2809972,97149.0,97148.0,0.2711593]
[1746120170445,0.2809972,97149.0,97148.0,0.2701593]
[1746120171342,0.2809972,97149.0,97148.0,0.2691593]
[1746120173141,0.2809972,97149.0,97148.0,0.2701593]
[1746120175337,0.2809972,97149.0,97148.0,0.2691593]
[1746120175544,0.2809972,97149.0,97148.0,0.2687593]
[1746120177944,0.051454,97141.0,97138.0,0.5666178]
[1746120178137,0.3170163,97140.0,97139.0,0.2691784]
[1746120178445,0.2803163,97140.0,97139.0,0.2691784]
[1746120178647,0.2803163,97140.0,97139.0,0.3412784]
[1746120179036,0.2803163,97140.0,97139.0,0.3805784]
[1746120179937,0.2803163,97140.0,97139.0,0.3825784]
[1746120180145,0.2803163,97140.0,97139.0,0.3835784]
[1746120180634,0.6411163,97140.0,97139.0,0.3835784]
[1746120181944,0.6411163,97140.0,97139.0,0.3202184]
[1746120182246,0.6411163,97140.0,97139.0,0.3835784]
[1746120183346,0.4353,97140.0,97139.0,0.3835784]
[1746120183744,0.3992,97140.0,97139.0,0.3835784]
[1746120184139,0.3992,97140.0,97139.0,0.4835784]
[1746120185751,0.0384,97140.0,97139.0,0.4835784]
[1746120186155,0.0514439,97160.0,97139.0,0.4835784]
[1746120186156,0.3608,97171.0,97141.0,0.0514533]
[1746120186451,0.2414824,97156.0,97155.0,0.2057845]
[1746120186649,0.2784824,97156.0,97155.0,0.2691445]
[1746120187051,0.2784824,97156.0,97155.0,0.3077445]
[1746120187838,0.2784824,97156.0,97155.0,0.3460445]
[1746120188645,0.2804824,97156.0,97155.0,0.36151384]
[1746120189149,0.2824824,97156.0,97155.0,0.36151384]
[1746120189545,0.039,97156.0,97155.0,0.3460445]
[1746120189954,0.039,97156.0,97155.0,0.7068445]
[1746120190155,0.2413537,97170.0,97169.0,0.2057548]
[1746120191450,0.2433537,97170.0,97169.0,0.2057548]
[1746120191651,0.2057612,97168.0,97167.0,0.2057574]
[1746120192358,0.2057612,97168.0,97167.0,0.2806574]
[1746120192661,0.2572005,97168.0,97167.0,0.2806574]
[1746120193160,0.2582005,97168.0,97167.0,0.2806574]
[1746120195762,0.2972005,97168.0,97167.0,0.2806574]
[1746120196362,0.2972005,97168.0,97167.0,0.2441574]
[1746120196568,0.2972005,97168.0,97167.0,0.0384]
[1746120198062,0.2057676,97163.0,97162.0,0.2417678]
[1746120198267,0.3608,97163.0,97156.0,0.036]
[1746120198563,0.2057781,97158.0,97157.0,0.2057798]
[1746120199363,0.051447,97154.0,97131.0,0.0514584]
[1746120199661,0.2572432,97152.0,97151.0,0.2572368]
[1746120199849,0.2057951,97152.0,97151.0,0.2572368]
[1746120200163,0.2835951,97152.0,97151.0,0.2572368]
[1746120201064,0.0778,97152.0,97151.0,0.2572368]
[1746120201264,0.0778,97152.0,97151.0,0.2582368]
[1746120201463,0.0778,97152.0,97151.0,0.2602368]
[1746120202170,0.2835909,97152.0,97151.0,0.2602368]
[1746120202562,0.0778,97152.0,97151.0,0.27581362]
[1746120203561,0.0778,97152.0,97151.0,0.27381362]
[1746120203758,0.0778,97152.0,97151.0,0.27581362]
[1746120204071,0.0778,97152.0,97151.0,0.27481362]
[1746120204267,0.0778,97152.0,97151.0,0.27581362]
[1746120204559,0.0778,97152.0,97151.0,0.27589762]
[1746120204864,0.0778,97152.0,97151.0,0.01865594]
[1746120204865,0.2835909,97152.0,97151.0,0.01865594]
[1746120205466,0.2835909,97152.0,97135.0,0.06332]
[1746120205467,0.2058248,97136.0,97135.0,0.06332]
[1746120205666,0.5666248,97136.0,97135.0,0.06332]
[1746120206063,0.5666248,97136.0,97135.0,0.2691469]
[1746120206260,0.3608,97136.0,97135.0,0.2691469]
[1746120206465,0.0363,97138.0,97137.0,0.2058226]
[1746120207059,0.0363,97138.0,97137.0,0.2820226]
[1746120207869,0.3608,97144.0,97143.0,0.2058099]
[1746120208869,0.3608,97144.0,97143.0,0.2420099]
[1746120209069,0.4001,97144.0,97143.0,0.2783099]
[1746120209269,0.6059078,97144.0,97143.0,0.2783099]
[1746120212670,0.6059078,97144.0,97143.0,0.0363]
[1746120215165,0.6059078,97144.0,97143.0,0.2421099]
[1746120217066,0.6059078,97144.0,97143.0,0.0363]